fUST/lending_fUST_20250913
["ID","MTS","AMOUNT","RATE_DAILY","PERIOD"]
[385264643,1757712638588,-500.0,0.00026919,2]
[385264644,1757712638597,-500.0,0.00026919,2]
[385264645,1757712638606,-637.29505754,0.00026919,2]
[385264646,1757712638616,-500.0,0.00026919,2]
[385264647,1757712638626,-415.6488898,0.00026919,2]
[385264648,1757712638635,-500.0,0.00026919,2]
[385264649,1757712638644,-295.23928199,0.00026919,2]
[385264650,1757712638653,-500.0,0.00026919,2]
[385264651,1757712638663,-500.0,0.00026919,2]
[385264652,1757712638672,-500.0,0.00026919,2]
[385264653,1757712638681,-500.0,0.00026919,2]
[385264654,1757712638691,-500.0,0.00026919,2]
[385264655,1757712638700,-218.1991857,0.00026919,2]
[385264656,1757712638709,-500.0,0.00026919,2]
[385264657,1757712638719,-500.0,0.00026919,2]
[385264658,1757712638728,-500.0,0.00026919,2]
[385264659,1757712638737,-500.0,0.00026919,2]
[385264660,1757712638746,-500.0,0.00026919,2]
[385264661,1757712638755,-500.0,0.00026919,2]
[385264662,1757712638765,-500.0,0.00026919,2]
[385264663,1757712638774,-388.07202725,0.00026919,2]
[385264664,1757712638783,-500.0,0.00026919,2]
[385264665,1757712638792,-500.0,0.00026919,2]
[385264666,1757712638802,-500.0,0.00026919,2]
[385264667,1757712638811,-500.0,0.00026919,2]
[385264668,1757712638820,-500.0,0.00026919,2]
[385264669,1757712638829,-638.33266945,0.00026919,2]
[385264670,1757712638839,-500.0,0.00026919,2]
[385264671,1757712638849,-11796.91235324,0.0002692,2]
[385264672,1757712638862,-18224.98026145,0.0002692,2]
[385265050,1757712643404,-989.11988135,0.0002692,2]
[385265052,1757712643416,-825.39796,0.0002692,2]
[385265355,1757712646320,-871.84501054,0.0002692,2]
[385265891,1757713662717,177.630213,0.00013699,2]
[385265904,1757713832452,-323.14191406,0.00018925,7]
[385265905,1757713832464,-4676.85808594,0.00018925,7]
[385265906,1757713832475,-160.0,0.00019816,2]
[385265907,1757713832484,-1200.0,0.00019897,2]
[385265908,1757713832494,-300.0,0.00019897,2]
[385265909,1757713832503,-300.0,0.00019897,2]
[385265910,1757713832513,-300.0,0.00019897,2]
[385265911,1757713832522,-1200.0,0.00019897,2]
[385265912,1757713832532,-3016.93794329,0.000199,2]
[385265914,1757713832541,-500.0,0.00020167,2]
[385265916,1757713832550,-177.630213,0.00020187,2]
[385265918,1757713832559,-166.08524088,0.00020197,2]
[385265920,1757713832569,-500.0,0.000202,2]
[385265922,1757713832578,-367.04078439,0.000202,2]
[385265924,1757713832587,-500.0,0.000202,2]
[385265926,1757713832596,-500.0,0.000202,2]
[385265928,1757713832605,-10432.90515471,0.00020297,2]
[385265930,1757713832620,-2743.57094523,0.00020297,2]
[385265933,1757713832632,-17617.68924735,0.00020297,2]
[385265935,1757713832641,-300.0,0.00020297,20]
[385265937,1757713832650,-300.0,0.00020297,20]
[385265939,1757713832660,-300.0,0.00020297,20]
[385265941,1757713832669,-300.0,0.00020297,20]
[385265943,1757713832679,-300.0,0.00020297,20]
[385265944,1757713832688,-300.0,0.00020297,20]
[385265945,1757713832698,-300.0,0.00020297,20]
[385265946,1757713832708,-300.0,0.00020297,20]
[385265947,1757713832717,-300.0,0.00020297,20]
[385265949,1757713832727,-300.0,0.00020297,20]
[385265951,1757713832736,-300.0,0.00020297,20]
[385265953,1757713832747,-300.0,0.00020297,20]
[385265955,1757713832757,-300.0,0.00020297,20]
[385265957,1757713832767,-300.0,0.00020297,20]
[385265959,1757713832779,-300.0,0.00020297,20]
[385265961,1757713832791,-600.0,0.00020702,20]
[385265963,1757713832800,-3016.93794317,0.00021149,2]
[385265964,1757713832810,-3016.93794317,0.00022398,2]
[385265965,1757713832819,-720.0,0.00022772,20]
[385265966,1757713832829,-166.08524086,0.00023096,2]
[385265967,1757713832839,-3016.93794317,0.00023647,2]
[385265968,1757713832848,-200.0,0.00024658,15]
[385265969,1757713832857,-3016.93794317,0.00024896,2]
[385265970,1757713832867,-864.0,0.00025049,20]
[385265971,1757713832876,-705.89944584,0.00025815,2]
[385265972,1757713832886,-166.08524086,0.00025994,2]
[385265973,1757713832895,-180.0,0.00026,7]
[385265974,1757713832904,-3016.93794317,0.00026145,4]
[385265975,1757713832917,-151.0,0.00026199,6]
[385265976,1757713832926,-154.83,0.00026342,7]
[385265977,1757713832935,-155.88,0.00026342,7]
[385265978,1757713832944,-154.83,0.00026442,7]
[385265979,1757713832953,-155.89629348,0.00026442,7]
[385265980,1757713832962,-10044.76663398,0.00026497,2]
[385266004,1757713838397,-813.75070014,0.00026497,2]
[385266006,1757713838406,-1452.69780888,0.00026502,2]
[385266008,1757713838416,-154.83,0.00026542,7]
[385266010,1757713838425,-847.0429734,0.00026542,7]
[385266012,1757713838434,-217.7145751,0.00026542,7]
[385266014,1757713838443,-233.13074058,0.00026542,7]
[385266016,1757713838453,-233.13074058,0.00026577,2]
[385266018,1757713838462,-217.7145751,0.00026577,2]
[385266020,1757713838471,-30654.6784188,0.00026591,2]
[385266022,1757713838480,-500.0,0.00026591,2]
[385266024,1757713838489,-500.0,0.00026591,2]
[385266026,1757713838498,-500.0,0.00026591,2]
[385266028,1757713838507,-500.0,0.00026591,2]
[385266030,1757713838516,-500.0,0.00026591,2]
[385266032,1757713838525,-500.0,0.00026591,2]
[385266034,1757713838535,-169.70095294,0.00026591,2]
[385266036,1757713838544,-530.08040663,0.00026591,2]
[385266038,1757713838553,-500.0,0.00026591,2]
[385266040,1757713838562,-565.40560432,0.00026591,2]
[385266042,1757713838571,-431.60249028,0.00026591,2]
[385266044,1757713838581,-357.5706697,0.00026591,2]
[385266047,1757713838590,-500.0,0.00026591,2]
[385266049,1757713838599,-500.0,0.00026591,2]
[385266051,1757713838608,-500.0,0.00026591,2]
[385266052,1757713838617,-500.0,0.00026591,2]
[385266054,1757713838626,-500.0,0.00026591,2]
[385266056,1757713838635,-500.0,0.00026591,2]
[385266059,1757713838645,-500.0,0.00026591,2]
[385266061,1757713838654,-500.0,0.00026591,2]
[385266063,1757713838663,-500.0,0.00026591,2]
[385266065,1757713838671,-500.0,0.00026591,2]
[385266067,1757713838680,-500.0,0.00026591,2]
[385266069,1757713838689,-500.0,0.00026591,2]
[385266071,1757713838698,-500.0,0.00026591,2]
[385266073,1757713838707,-500.0,0.00026591,2]
[385266075,1757713838716,-500.0,0.00026591,2]
[385266077,1757713838725,-500.0,0.00026591,2]
[385266079,1757713838734,-559.42247589,0.00026591,2]
[385266081,1757713838742,-500.0,0.00026591,2]
[385266082,1757713838751,-500.0,0.00026591,2]
[385266083,1757713838760,-500.0,0.00026591,2]
[385266084,1757713838770,-500.0,0.00026591,2]
[385266085,1757713838778,-500.0,0.00026591,2]
[385266086,1757713838787,-500.0,0.00026591,2]
[385266087,1757713838797,-500.0,0.00026591,2]
[385266088,1757713838806,-500.0,0.00026591,2]
[385266089,1757713838815,-500.0,0.00026591,2]
[385266090,1757713838824,-500.0,0.00026591,2]
[385266091,1757713838833,-500.0,0.00026591,2]
[385266092,1757713838842,-500.0,0.00026591,2]
[385266093,1757713838852,-500.0,0.00026591,2]
[385266094,1757713838861,-500.0,0.00026591,2]
[385266095,1757713838870,-40582.37855303,0.00026592,2]
[385266096,1757713838881,-6451.03016041,0.00026592,2]
[385266097,1757713838892,-1468.65725601,0.00026592,2]
[385266098,1757713838903,-711.80323751,0.00026592,2]
[385266099,1757713838913,-5489.08486029,0.00026592,2]
[385266100,1757713838931,-813.75070014,0.00026232,2]
[385266101,1757713838941,-2911.48968481,0.00026592,2]
[385266102,1757713838952,-2609.62706379,0.00026592,2]
[385266103,1757713838963,-8542.22877212,0.00026592,2]
[385266273,1757713840593,-11125.0,0.00026592,2]
[385266275,1757713840606,-408.0,0.00026592,2]
[385266278,1757713840617,-134283.44934403,0.00026592,2]
[385266280,1757713840627,-827.45,0.00026601,2]
[385266282,1757713840637,-160.0,0.00026605,2]
[385266284,1757713840647,-847.0429734,0.00026605,2]
[385266286,1757713840655,-28066.8865,0.00026612,2]
[385266288,1757713840666,-154.83,0.00026642,7]
[385266290,1757713840676,-500.0,0.00026667,2]
[385266291,1757713840686,-177.630213,0.00026676,2]
[385266293,1757713840696,-500.0,0.00026695,2]
[385266295,1757713840707,-500.0,0.00026698,2]
[385266297,1757713840716,-500.0,0.00026713,2]
[385266299,1757713840726,-30654.6784188,0.0002673,2]
[385266301,1757713840735,-500.0,0.0002674,2]
[385266303,1757713840744,-154.83,0.00026742,7]
[385266305,1757713840753,-1452.69780887,0.00026754,2]
[385266307,1757713840762,-500.0,0.00026827,2]
[385266309,1757713840772,-154.83,0.00026842,7]
[385266311,1757713840781,-192.40068762,0.00026842,7]
[385266313,1757713840793,-900.0,0.00026848,2]
[385266316,1757713840803,-500.0,0.00026852,2]
[385266317,1757713840813,-500.0,0.00026865,2]
[385266331,1757713840934,-500.0,0.00026873,2]
[385266333,1757713840944,-500.0,0.00026873,2]
[385266335,1757713840954,-500.0,0.00026873,2]
[385266337,1757713840963,-500.0,0.00026873,2]
[385266339,1757713840972,-500.0,0.00026873,2]
[385266341,1757713840982,-228.94211228,0.00026873,2]
[385266343,1757713840991,-160.10793149,0.00026873,2]
[385266345,1757713841001,-500.0,0.00026873,2]
[385266347,1757713841011,-500.0,0.00026873,2]
[385266349,1757713841020,-500.0,0.00026873,2]
[385266351,1757713841030,-500.0,0.00026873,2]
[385266353,1757713841041,-500.0,0.00026873,2]
[385266355,1757713841050,-500.0,0.00026873,2]
[385266357,1757713841059,-158.10884462,0.00026873,2]
[385266359,1757713841069,-500.0,0.00026873,2]
[385266361,1757713841078,-500.0,0.00026873,2]
[385266363,1757713841088,-571.30130751,0.00026873,2]
[385266365,1757713841098,-500.0,0.00026873,2]
[385266367,1757713841108,-500.0,0.00026873,2]
[385266369,1757713841118,-500.0,0.00026873,2]
[385266371,1757713841127,-500.0,0.00026873,2]
[385266373,1757713841136,-500.0,0.00026873,2]
[385266375,1757713841147,-570.30542376,0.00026873,2]
[385266377,1757713841157,-196.01094553,0.00026873,2]
[385266379,1757713841168,-244.93746783,0.00026878,2]
[385266381,1757713841177,-279.42203893,0.00026878,2]
[385266383,1757713841186,-17291.79529844,0.00026879,2]
[385266605,1757713843473,-9846.50453117,0.00026879,2]
[385266612,1757713843531,-3281.72824,0.00026879,2]
[385266629,1757713843676,-3181.2668336,0.00026879,2]
[385266632,1757713843687,-425.0,0.00026879,2]
[385266635,1757713843698,-2115.44488179,0.00026879,2]
[385266940,1757713846694,-409.0,0.0002529,2]
[385266943,1757713846704,-154.400901,0.0002557,2]
[385266944,1757713846713,-792.98,0.000266,2]
[385266947,1757713846722,-12452.9900061,0.00026879,2]
[385266977,1757713898185,-186.80517108,0.000199,2]
[385266985,1757714305043,600.0,0.00027,120]
[385266986,1757714347975,900.0,0.00027,120]
[385266987,1757714456855,800.0,0.00027,120]
[385266991,1757714580012,160.393791,0.00013699,2]
[385267078,1757715032825,-754.0,0.00018638,2]
[385267079,1757715032835,-204.12988113,0.00018826,2]
[385267080,1757715032844,-204.12988113,0.00019016,2]
[385267081,1757715032854,-23.06278789,0.00019807,2]
[385267082,1757715032866,-136.93721211,0.00019807,2]
[385267083,1757715032875,-217.7145751,0.00019813,2]
[385267084,1757715032885,-847.0429734,0.00019813,2]
[385267085,1757715032894,-1190.08599825,0.000199,2]
[385267086,1757715032907,-956.23404994,0.000199,2]
[385267087,1757715032919,-256.58608735,0.000199,2]
[385267088,1757715032928,-300.0,0.00020186,2]
[385267089,1757715032937,-486.0,0.00020186,2]
[385267090,1757715032947,-9070.37997118,0.00020187,2]
[385267092,1757715032959,-929.63002882,0.00020187,2]
[385267094,1757715032969,-160.393791,0.00020187,2]
[385267096,1757715032978,-500.0,0.000202,2]
[385267098,1757715032988,-500.0,0.000202,2]
[385267100,1757715032997,-500.18356183,0.0002025,2]
[385267102,1757715033006,-500.0,0.00020267,2]
[385267104,1757715033015,-500.0,0.00020267,2]
[385267106,1757715033024,-223.22456506,0.00020267,2]
[385267122,1757715033159,-500.0,0.00020267,2]
[385267124,1757715033169,-300.0,0.00020297,20]
[385267125,1757715033178,-300.0,0.00020297,20]
[385267126,1757715033187,-300.0,0.00020297,20]
[385267127,1757715033196,-300.0,0.00020297,20]
[385267128,1757715033205,-300.0,0.00020297,20]
[385267129,1757715033214,-300.0,0.00020297,20]
[385267130,1757715033223,-300.0,0.00020297,20]
[385267131,1757715033232,-300.0,0.00020297,20]
[385267132,1757715033241,-300.0,0.00020297,20]
[385267133,1757715033250,-300.0,0.00020297,20]
[385267134,1757715033259,-300.0,0.00020297,20]
[385267135,1757715033269,-300.0,0.00020297,20]
[385267136,1757715033278,-300.0,0.00020297,20]
[385267137,1757715033287,-300.0,0.00020297,20]
[385267138,1757715033296,-300.0,0.00020297,20]
[385267139,1757715033305,-500.9486182,0.00020467,2]
[385267140,1757715033315,-600.0,0.00020702,20]
[385267141,1757715033324,-500.0,0.00020815,2]
[385267142,1757715033332,-500.0,0.00020815,2]
[385267143,1757715033342,-2402.90613538,0.00021149,2]
[385267144,1757715033351,-3000.0,0.000219,2]
[385267145,1757715033360,-3000.0,0.0002191,2]
[385267146,1757715033369,-3000.0,0.0002192,2]
[385267147,1757715033378,-5621.702025,0.0002193,2]
[385267148,1757715033387,-2402.90613538,0.00022398,2]
[385267149,1757715033396,-720.0,0.00022772,20]
[385267150,1757715033407,-2402.90613538,0.00023647,2]
[385267151,1757715033416,-417.15472785,0.00024,3]
[385267152,1757715033425,-623.31527986,0.00024295,2]
[385267153,1757715033434,-409.0,0.00024491,2]
[385267154,1757715033443,-2402.90613538,0.00024896,2]
[385267155,1757715033452,-864.0,0.00025049,20]
[385267156,1757715033461,-154.400901,0.00025724,2]
[385267157,1757715033470,-2264.10087164,0.00025946,2]
[385267158,1757715033479,-2347.87260389,0.00026001,2]
[385267159,1757715033488,-233.13074058,0.00026015,2]
[385267160,1757715033497,-2434.74389024,0.00026056,2]
[385267161,1757715033506,-1536.4159286,0.00026111,2]
[385267162,1757715033515,-2402.90613538,0.00026145,4]
[385267163,1757715033524,-4607.58336956,0.00026402,2]
[385267164,1757715033534,-160.393791,0.00026676,2]
[385267165,1757715033543,-500.0,0.00026683,2]
[385267166,1757715033554,-800.0,0.00026723,2]
[385267167,1757715033567,-800.0,0.00026747,2]
[385267168,1757715033576,-500.0,0.00026755,2]
[385267169,1757715033586,-500.0,0.00026857,2]
[385267170,1757715033595,-1693.74976209,0.00026861,2]
[385267171,1757715033605,-9073.07101475,0.0002687,2]
[385267172,1757715033615,-156.15939956,0.00026879,3]
[385267173,1757715033625,-328.0,0.00026879,3]
[385267174,1757715033634,-1305.0,0.00026879,3]
[385267175,1757715033645,-1305.0,0.00026879,3]
[385267176,1757715033655,-1305.0,0.00026879,3]
[385267177,1757715033665,-154.83,0.00026942,7]
[385267178,1757715033674,-500.0,0.00026959,2]
[385267179,1757715033683,-500.0,0.00026959,2]
[385267180,1757715033693,-500.0,0.00026959,2]
[385267181,1757715033702,-500.0,0.00026959,2]
[385267182,1757715033711,-210.75960156,0.00026959,2]
[385267183,1757715033720,-500.0,0.00026959,2]
[385267184,1757715033730,-345.45985345,0.00026959,2]
[385267185,1757715033739,-207.85488986,0.00026959,2]
[385267186,1757715033748,-500.0,0.00026959,2]
[385267187,1757715033758,-500.0,0.00026959,2]
[385267188,1757715033767,-166.86216848,0.00026959,2]
[385267189,1757715033776,-171.45622748,0.00026959,2]
[385267190,1757715033785,-195.59542725,0.00026959,2]
[385267191,1757715033795,-151.0,0.0002696,7]
[385267192,1757715033804,-53998.15881408,0.0002696,2]
[385267193,1757715033816,-250941.37215192,0.0002696,2]
[385267194,1757715033825,-49058.62784808,0.0002696,2]
[385267195,1757715033836,-12532.99699387,0.0002696,2]
[385267212,1757715038654,-250.30141901,0.0002696,2]
[385267213,1757715038712,-906.336004,0.0002696,2]
[385267214,1757715038724,-7546.18931412,0.0002696,2]
[385267223,1757715040929,-669.18755774,0.0002696,2]
[385267225,1757715040987,-267.0,0.0002696,2]
[385267227,1757715040999,-460.95174316,0.0002696,2]
[385267229,1757715041045,-456.4,0.0002696,2]
[385267230,1757715041057,-572.325,0.0002696,2]
[385267239,1757715043995,-53841.11453787,0.0002696,2]
[385267240,1757715044007,-71443.3176787,0.0002696,2]
[385267265,1757715665504,29658.2331,0.0002899,60]
[385267271,1757715687269,149371.4034,0.00013,2]
[385267273,1757715736444,160.393791,0.00013699,2]
[385267344,1757716231998,-733.04983609,0.00019499,2]
[385267375,1757716237700,-117.99400817,0.00019499,2]
[385267378,1757716237711,-319.97870653,0.00019867,2]
[385267384,1757716237762,-211.06513773,0.00019867,2]
[385267386,1757716237772,-160.0,0.00019867,2]
[385267388,1757716237781,-160.0,0.00019867,2]
[385267390,1757716237791,-36.88486651,0.00019867,2]
[385267392,1757716237802,-123.11513349,0.00019867,2]
[385267394,1757716237812,-999.32598984,0.000199,2]
[385267492,1757716240424,-1489.29714189,0.000199,2]
[385267493,1757716240434,-500.0,0.00020167,2]
[385267494,1757716240448,-188.80686032,0.00020167,2]
[385267495,1757716240458,-500.0,0.00020167,2]
[385267496,1757716240468,-300.0,0.00020297,20]
[385267497,1757716240477,-300.0,0.00020297,20]
[385267498,1757716240486,-300.0,0.00020297,20]
[385267499,1757716240496,-300.0,0.00020297,20]
[385267500,1757716240505,-300.0,0.00020297,20]
[385267501,1757716240514,-300.0,0.00020297,20]
[385267502,1757716240523,-300.0,0.00020297,20]
[385267503,1757716240532,-300.0,0.00020297,20]
[385267504,1757716240542,-300.0,0.00020297,20]
[385267505,1757716240551,-300.0,0.00020297,20]
[385267506,1757716240561,-300.0,0.00020297,20]
[385267507,1757716240570,-300.0,0.00020297,20]
[385267508,1757716240579,-300.0,0.00020297,20]
[385267509,1757716240592,-300.0,0.00020297,20]
[385267510,1757716240601,-300.0,0.00020297,20]
[385267511,1757716240610,-501.05278782,0.000203,2]
[385267512,1757716240620,-469.75699858,0.000203,2]
[385267513,1757716240630,-600.0,0.00020702,20]
[385267514,1757716240639,-2488.62313159,0.00021149,2]
[385267515,1757716240648,-160.393791,0.00021404,2]
[385267516,1757716240658,-3310.9422525,0.000218,2]
[385267517,1757716240671,-738.34641176,0.000218,2]
[385267518,1757716240681,-2488.62313159,0.00022398,2]
[385267519,1757716240690,-720.0,0.00022772,20]
[385267520,1757716240700,-24900.0,0.00023288,2]
[385267521,1757716240710,-176.77521056,0.00023547,2]
[385267522,1757716240719,-2488.62313159,0.00023647,2]
[385267523,1757716240728,-417.15472785,0.00024,3]
[385267524,1757716240737,-176.77521053,0.00024882,2]
[385267525,1757716240747,-2488.62313159,0.00024896,2]
[385267526,1757716240756,-864.0,0.00025049,20]
[385267527,1757716240766,-2105.41764886,0.00025724,2]
[385267528,1757716240775,-409.0,0.00025817,2]
[385267529,1757716240784,-2488.62313159,0.00026145,4]
[385267530,1757716240793,-176.77521053,0.00026217,2]
[385267531,1757716240803,-154.83,0.00026253,7]
[385267532,1757716240812,-155.88,0.00026253,7]
[385267533,1757716240822,-1261.4,0.00026253,7]
[385267534,1757716240831,-1261.4,0.00026353,7]
[385267535,1757716240840,-160.0,0.00026371,2]
[385267536,1757716240850,-233.13074058,0.00026371,2]
[385267537,1757716240859,-1261.4,0.00026453,7]
[385267538,1757716240868,-1261.4,0.00026553,7]
[385267539,1757716240877,-168.0,0.00026587,2]
[385267540,1757716240887,-217.7145751,0.00026642,2]
[385267541,1757716240896,-847.0429734,0.00026642,2]
[385267542,1757716240905,-1261.4,0.00026653,7]
[385267543,1757716240915,-800.0,0.00026665,2]
[385267544,1757716240924,-250.0,0.00026674,2]
[385267545,1757716240933,-800.0,0.00026705,2]
[385267546,1757716240942,-800.0,0.00026718,2]
[385267547,1757716240951,-189.66230154,0.00026753,7]
[385267548,1757716240966,-1071.73769846,0.00026753,7]
[385267549,1757716240976,-800.0,0.00026793,2]
[385267550,1757716240985,-157.0,0.00026793,2]
[385267551,1757716240995,-186.0,0.00026793,2]
[385267552,1757716241005,-157.0,0.00026793,2]
[385267553,1757716241014,-456.0,0.00026793,2]
[385267554,1757716241023,-186.0,0.00026793,2]
[385267555,1757716241032,-186.0,0.00026793,2]
[385267556,1757716241043,-157.0,0.00026793,2]
[385267557,1757716241052,-157.0,0.00026793,2]
[385267558,1757716241061,-223.26230154,0.0002681,2]
[385267559,1757716241327,-576.73769846,0.0002681,2]
[385267560,1757716241337,-500.0,0.00026836,2]
[385267561,1757716241346,-500.0,0.00026843,2]
[385267562,1757716241356,-800.0,0.0002685,2]
[385267563,1757716241365,-1261.4,0.00026853,7]
[385267564,1757716241375,-531.04384426,0.00026853,7]
[385267565,1757716241384,-847.0429734,0.00026853,7]
[385267566,1757716241393,-217.7145751,0.00026853,7]
[385267567,1757716241402,-233.13074058,0.00026853,7]
[385267568,1757716241411,-500.0,0.00026876,2]
[385267569,1757716241421,-1354.99980968,0.0002689,2]
[385267570,1757716241430,-2174.78251026,0.000269,2]
[385267571,1757716241440,-4007.97776168,0.000269,2]
[385267572,1757716241453,-2769.40233243,0.000269,2]
[385267573,1757716241463,-168.0,0.00026913,2]
[385267574,1757716241472,-500.0,0.00026949,2]
[385267575,1757716241481,-500.0,0.00026951,2]
[385267576,1757716241490,-1261.4,0.00026953,7]
[385267577,1757716241499,-500.0,0.00026955,2]
[385267578,1757716241508,-359.5858425,0.00026989,2]
[385267579,1757716241517,-645.74384606,0.00026989,2]
[385267580,1757716241525,-240.76246316,0.00026989,2]
[385267581,1757716241534,-759.94,0.00026989,2]
[385267582,1757716241543,-60476.40018768,0.0002699,2]
[385267583,1757716241556,-5567.14733038,0.0002699,2]
[385267597,1757716244111,-2707.63161505,0.0002699,2]
[385267600,1757716244176,-1309.60459778,0.0002699,2]
[385267613,1757716246259,-2545.30468655,0.0002699,2]
[385267614,1757716246271,-8632.00000018,0.0002699,2]
[385267615,1757716246283,-13686.23002226,0.0002699,2]
[385267616,1757716246293,-13444.68265696,0.0002699,2]
[385267617,1757716465532,1510.87009331,0.0002899,66]
[385267619,1757716649963,160.393791,0.00013699,2]
[385268226,1757717438019,-699.07777233,0.00019278,2]
[385268286,1757717438533,-217.7145751,0.00019823,2]
[385268287,1757717438542,-847.0429734,0.00019823,2]
[385268288,1757717438552,-1990.89850533,0.000199,2]
[385268289,1757717438561,-1200.0,0.00020296,2]
[385268290,1757717438570,-300.0,0.00020297,20]
[385268291,1757717438580,-300.0,0.00020297,20]
[385268292,1757717438589,-300.0,0.00020297,20]
[385268293,1757717438598,-300.0,0.00020297,20]
[385268294,1757717438607,-300.0,0.00020297,20]
[385268295,1757717438617,-300.0,0.00020297,20]
[385268296,1757717438626,-300.0,0.00020297,20]
[385268297,1757717438635,-300.0,0.00020297,20]
[385268298,1757717438644,-300.0,0.00020297,20]
[385268299,1757717438653,-300.0,0.00020297,20]
[385268300,1757717438662,-300.0,0.00020297,20]
[385268301,1757717438671,-300.0,0.00020297,20]
[385268302,1757717438680,-300.0,0.00020297,20]
[385268303,1757717438689,-300.0,0.00020297,20]
[385268304,1757717438699,-300.0,0.00020297,20]
[385268306,1757717438708,-500.0,0.000203,2]
[385268308,1757717438718,-600.0,0.00020702,20]
[385268310,1757717438727,-1990.89850527,0.00021149,2]
[385268312,1757717438735,-1990.89850527,0.00022398,2]
[385268314,1757717438745,-160.393791,0.00022505,2]
[385268316,1757717438755,-720.0,0.00022772,20]
[385268318,1757717438764,-1990.89850527,0.00023647,2]
[385268320,1757717438773,-24900.0,0.00023881,2]
[385268322,1757717438782,-1990.89850527,0.00024896,2]
[385268324,1757717438791,-154.400901,0.00024953,15]
[385268326,1757717438801,-864.0,0.00025049,20]
[385268328,1757717438810,-154.400901,0.00025172,15]
[385268330,1757717438820,-154.400901,0.00025232,2]
[385268332,1757717438829,-154.400901,0.00025794,2]
[385268334,1757717438838,-160.0,0.00025904,2]
[385268336,1757717438847,-233.13074058,0.00025904,2]
[385268338,1757717438856,-500.0,0.00026027,2]
[385268340,1757717438865,-1990.89850527,0.00026145,4]
[385268342,1757717438874,-1361.35732937,0.0002618,2]
[385268344,1757717438884,-500.0,0.00026693,2]
[385268346,1757717438893,-205.488,0.00026751,14]
[385268348,1757717438902,-195.09753074,0.00026751,14]
[385268350,1757717438911,-1083.99984776,0.00026789,2]
[385268352,1757717438920,-1732.08107661,0.00026789,2]
[385268385,1757717439208,-486.93495976,0.00026789,2]
[385268387,1757717439224,-1516.39,0.00026789,2]
[385268390,1757717439236,-782.84735971,0.00026789,2]
[385268392,1757717439245,-180.05263769,0.00026817,2]
[385268483,1757717440311,-419.94736231,0.00026817,2]
[385268484,1757717440320,-8.35144393,0.00026818,2]
[385268496,1757717440487,-491.64855607,0.00026818,2]
[385268498,1757717440496,-414.35144393,0.00026879,2]
[385268790,1757717446463,-160.0,0.00019823,2]
[385268792,1757717446472,-154.400902,0.00025412,2]
[385268794,1757717446481,-60.77464562,0.0002583,2]
[385268913,1757717803570,160.393791,0.00013699,2]
[385268999,1757718632163,-307.66810207,0.0001764,2]
[385269006,1757718632683,-1285.05070232,0.0001764,2]
[385269007,1757718632692,-1592.71880439,0.00017818,2]
[385269008,1757718632702,-1592.71880439,0.00017998,2]
[385269009,1757718632711,-1592.71880439,0.000199,2]
[385269010,1757718632721,-1012.37013326,0.00021149,2]
[385269011,1757718632732,-580.34867095,0.00021149,2]
[385269012,1757718632741,-304.0,0.00022395,2]
[385269013,1757718632750,-323.4123568,0.00022398,2]
[385269014,1757718632761,-462.215,0.00022398,2]
[385269038,1757718638155,-807.09144741,0.00022398,2]
[385269040,1757718638164,-300.0,0.0002364,2]
[385269042,1757718638174,-231.0,0.00023641,2]
[385269044,1757718638183,-521.39996738,0.00023647,2]
[385269053,1757718638268,-1071.31883683,0.00023647,2]
[385269056,1757718638278,-160.393791,0.00023973,2]